bitfinex/quotes_SOLUSD_20260305
["timestamp","ask_amount","ask_price","bid_price","bid_amount"]
[1772707230999,0.06513782,92.329,92.26,0.89223493]
[1772707231215,0.06513782,92.319,92.26,0.89223493]
[1772707231518,10.89714423,92.319,92.265,0.75007336]
[1772707231803,8.70065134,92.31,92.265,0.75007336]
[1772707231990,0.06722988,92.318,92.265,0.75007336]
[1772707232517,10.83200641,92.319,92.261,10.83881596]
[1772707232518,0.06929973,92.299,92.261,10.83881596]
[1772707232704,0.06929973,92.299,92.262,0.75007336]
[1772707232878,8.70065134,92.31,92.262,0.75007336]
[1772707232879,0.06929973,92.309,92.262,0.75007336]
[1772707233419,0.06929973,92.299,92.263,10.83858101]
[1772707234993,0.07336342,92.311,92.264,0.75007336]
[1772707235193,10.90560087,92.318,92.264,0.75007336]
[1772707235399,0.07336342,92.317,92.264,0.75007336]
[1772707235708,0.07336342,92.317,92.265,10.83834606]
[1772707235914,37.91254681,92.318,92.266,0.75007336]
[1772707235915,10.83223745,92.318,92.266,0.75007336]
[1772707236219,0.07536898,92.317,92.266,0.75007336]
[1772707236788,0.07734364,92.328,92.267,0.75007336]
[1772707237013,0.07734364,92.327,92.268,0.75007336]
[1772707237205,0.07734364,92.327,92.27,0.75007336]
[1772707237508,0.07734364,92.327,92.271,0.75007336]
[1772707237808,0.07734364,92.327,92.273,0.75007336]
[1772707238581,8.70065134,92.32,92.273,0.75007336]
[1772707238802,0.08121708,92.319,92.273,0.75007336]
[1772707239496,0.28432314,92.319,92.273,0.75007336]
[1772707239700,0.08312592,92.318,92.273,0.75007336]
[1772707240084,0.08312592,92.309,92.274,10.83728894]
[1772707241399,0.0850135,92.319,92.274,0.75007336]
[1772707241709,0.08687691,92.319,92.274,0.75007336]
[1772707242492,0.08687691,92.319,92.264,0.75007336]
[1772707243707,0.09054819,92.318,92.267,0.75007336]
[1772707243917,10.83142461,92.324,92.267,0.75007336]
[1772707244215,10.83142461,92.324,92.269,1.0343965]
[1772707244518,0.09054819,92.323,92.271,0.75007336]
[1772707244726,0.09235815,92.319,92.271,0.75007336]
[1772707245089,0.09235815,92.309,92.271,0.75007336]
[1772707245305,0.09235815,92.319,92.271,0.75007336]
[1772707245494,0.09413801,92.318,92.273,0.75007336]
[1772707246400,10.83089963,92.329,92.274,0.75007336]
[1772707246620,0.0958954,92.349,92.275,0.75007336]
[1772707246911,0.0958954,92.349,92.277,1.0343965]
[1772707247108,0.0958954,92.349,92.279,0.75007336]
[1772707247307,0.0958954,92.349,92.28,0.89223493]
[1772707247510,0.09763346,92.348,92.284,0.75007336]
[1772707248824,0.09763346,92.348,92.286,0.75007336]
[1772707249645,10.82848758,92.349,92.29,0.77270026]
[1772707249931,10.82848758,92.349,92.294,0.91486183]
[1772707250133,0.10270857,92.348,92.296,0.77270026]
[1772707250340,0.10270857,92.348,92.297,0.28432314]
[1772707250653,0.10270857,92.348,92.299,0.77270026]
[1772707251524,10.82848758,92.349,92.299,0.77270026]
[1772707251739,0.10599652,92.348,92.301,0.77270026]
[1772707254237,0.10599652,92.348,92.292,0.77270026]
[1772707255541,0.1123695,92.329,92.292,0.77270026]
[1772707256333,10.94320271,92.329,92.293,10.83505791]
[1772707256527,0.1123695,92.328,92.293,10.83505791]
[1772707257427,0.11392118,92.339,92.294,0.77270026]
[1772707257627,10.94522863,92.338,92.294,0.77270026]
[1772707258237,0.11545108,92.337,92.294,0.77270026]
[1772707258431,0.11545108,92.337,92.295,10.83482312]
[1772707258619,0.11545108,92.337,92.296,0.77270026]
[1772707259343,0.11545108,92.337,92.295,10.83482312]
[1772707259822,0.11545108,92.337,92.295,0.77270026]
[1772707260441,0.11847178,92.346,92.295,0.77270026]
[1772707261139,0.11995925,92.344,92.295,0.77270026]
[1772707261324,8.70065134,92.34,92.295,0.77270026]
[1772707261528,0.11995925,92.339,92.295,0.77270026]
[1772707261728,0.12142416,92.329,92.276,0.77270026]
[1772707261929,0.12142416,92.328,92.279,0.77270026]
[1772707263617,0.12429506,92.319,92.279,0.77270026]
[1772707263821,0.12429506,92.318,92.28,10.8365843]
[1772707264231,0.12429506,92.318,92.281,0.77270026]
[1772707266532,0.12429506,92.318,92.271,0.77270026]
[1772707266841,0.12847863,92.309,92.253,0.77270026]
[1772707267146,0.12847863,92.324,92.256,1.0570234]
[1772707267354,0.12847863,92.338,92.259,0.77270026]
[1772707267641,43.28709806,92.407,92.262,0.91486183]
[1772707267642,0.14216157,92.348,92.262,0.91486183]
[1772707267824,0.12984204,92.347,92.264,1.0570234]
[1772707268158,0.12984204,92.339,92.268,0.77270026]
[1772707268364,0.12984204,92.339,92.27,0.77270026]
[1772707268528,0.13119494,92.338,92.272,37.93133344]
[1772707268723,0.13119494,92.338,92.274,0.77270026]
[1772707269241,10.82917765,92.344,92.277,0.77270026]
[1772707270224,10.82917765,92.344,92.28,0.77270026]
[1772707271225,10.96301758,92.344,92.282,0.77270026]
[1772707271733,0.13513547,92.339,92.282,0.77270026]
[1772707272330,0.13513547,92.329,92.282,0.77270026]
[1772707274244,37.90381095,92.339,92.284,0.77270026]
[1772707274548,0.13769723,92.338,92.284,0.77270026]
[1772707276225,0.13769723,92.338,92.286,0.77270026]
[1772707278554,0.13769723,92.338,92.288,0.77270026]
[1772707279750,0.14623563,92.329,92.288,0.77270026]
[1772707280051,0.14623563,92.329,92.264,1.08384635]
[1772707280052,0.14623563,92.309,92.265,0.81495665]
[1772707280254,0.14623563,92.319,92.266,0.81495665]
[1772707280637,0.14740111,92.318,92.268,0.81495665]
[1772707282059,10.83143836,92.324,92.269,0.81495665]
[1772707282253,10.83143836,92.324,92.27,0.28432314]
[1772707282437,10.83143836,92.324,92.271,0.81495665]
[1772707282938,10.97934262,92.339,92.274,0.81495665]
[1772707284238,0.15080446,92.338,92.274,0.81495665]
[1772707284958,0.15080446,92.338,92.273,0.28432314]
[1772707284959,0.15191466,92.328,92.276,0.81495665]
[1772707286239,0.15300603,92.326,92.278,0.81495665]
[1772707286949,0.15300603,92.326,92.277,10.83693661]
[1772707287262,0.15409175,92.319,92.277,10.83693661]
[1772707287756,0.15623656,92.309,92.277,10.83693661]
[1772707287966,0.15623656,92.319,92.278,0.78902856]
[1772707288361,0.15623656,92.317,92.28,0.78902856]
[1772707290274,10.83212374,92.318,92.28,0.78902856]
[1772707290768,10.83118514,92.326,92.282,0.78902856]
[1772707291879,10.9915428,92.326,92.284,0.78902856]
[1772707292450,0.16035766,92.325,92.284,0.78902856]
[1772707292778,0.16135833,92.319,92.284,0.78902856]
[1772707293065,0.16135833,92.319,92.283,10.83623202]
[1772707293654,10.83118514,92.326,92.284,0.78902856]
[1772707293839,10.8305986,92.331,92.286,0.78902856]
[1772707295058,37.90709511,92.331,92.286,0.78902856]
[1772707295967,0.16430503,92.33,92.287,37.92516822]
[1772707296152,0.16430503,92.33,92.288,0.78902856]
[1772707297656,0.16621523,92.338,92.288,0.78902856]
[1772707298675,0.16621523,92.338,92.287,37.92516822]
[1772707298676,0.1671495,92.336,92.29,0.78902856]
[1772707298853,0.1671495,92.329,92.29,0.78902856]
[1772707301564,7.01339839,92.355,92.282,0.78902856]
[1772707301565,0.16990855,92.319,92.282,0.78902856]
[1772707303257,0.17080282,92.327,92.282,0.78902856]
[1772707303458,37.90832683,92.328,92.282,0.78902856]
[1772707303459,0.17080282,92.319,92.282,0.78902856]
[1772707303660,0.17080282,92.319,92.262,37.9354447]
[1772707303661,0.17168638,92.317,92.263,0.78902856]
[1772707304669,0.17256158,92.326,92.265,0.78902856]
[1772707304876,0.17256158,92.326,92.266,0.93119013]
[1772707305077,0.17256158,92.319,92.267,0.78902856]
[1772707306866,0.17426991,92.317,92.269,0.78902856]
[1772707308175,0.17512094,92.309,92.269,0.78902856]
[1772707308958,0.17677996,92.307,92.271,0.83633863]
[1772707311674,0.17920646,92.319,92.273,0.83633863]
[1772707312364,10.83160803,92.323,92.273,0.83633863]
[1772707313567,27.07475028,92.337,92.275,0.83633863]
[1772707313775,0.1807673,92.329,92.275,0.83633863]
[1772707315382,0.18153724,92.327,92.277,0.83633863]
[1772707315787,4.05807753,92.32,92.277,0.83633863]
[1772707315976,0.18230231,92.319,92.277,0.83633863]
[1772707316985,10.83095052,92.328,92.277,0.83633863]
[1772707317785,10.83095052,92.328,92.279,0.83633863]
[1772707319085,0.1845266,92.309,92.278,10.83681917]
[1772707319287,10.83095052,92.328,92.279,0.83633863]
[1772707319583,0.18526173,92.327,92.279,0.83633863]
[1772707319785,11.01644687,92.326,92.281,0.83633863]
[1772707319961,0.18526173,92.319,92.281,0.83633863]
[1772707320164,10.83118514,92.326,92.28,10.8365843]
[1772707320165,0.18526173,92.309,92.28,10.8365843]
[1772707320366,0.18526173,92.309,92.276,10.83700186]
[1772707320664,0.18526173,92.309,92.276,11.67334049]
[1772707321071,0.18598983,92.319,92.277,0.83633863]
[1772707321275,10.83118514,92.326,92.277,0.83633863]
[1772707321563,104.9,92.34,92.278,0.83633863]
[1772707321782,0.1866974,92.342,92.28,37.92804507]
[1772707321783,10.82966027,92.339,92.28,37.92804507]
[1772707321974,10.82966027,92.339,92.281,0.83633863]
[1772707322174,11.01635767,92.339,92.281,0.83633863]
[1772707322783,11.01635767,92.339,92.282,37.92722307]
[1772707322979,11.01635767,92.339,92.283,0.83633863]
[1772707323180,10.82901359,92.345,92.284,0.83633863]
[1772707323385,10.82901359,92.345,92.285,0.83633863]
[1772707323684,10.82901359,92.345,92.287,0.83633863]
[1772707323886,10.82901359,92.345,92.289,0.83633863]
[1772707324087,10.82901359,92.345,92.29,0.9785002]
[1772707324385,0.18807914,92.4,92.291,0.83633863]
[1772707324590,0.1887565,92.388,92.294,0.83633863]
[1772707324788,6.71829949,92.389,92.294,0.83633863]
[1772707324789,10.82508822,92.378,92.297,38.7573978]
[1772707324977,0.1887565,92.377,92.302,0.83633863]
[1772707325174,0.1887565,92.377,92.305,0.83633863]
[1772707325365,0.1887565,92.377,92.307,0.83633863]
[1772707325588,0.18942096,92.376,92.309,0.83633863]
[1772707325795,0.18942096,92.376,92.31,0.28432314]
[1772707326097,0.18942096,92.376,92.311,0.83633863]
[1772707326964,10.82543978,92.375,92.312,37.9148973]
[1772707327170,0.19008505,92.374,92.313,0.83633863]
[1772707328174,10.82490791,92.38,92.315,0.28432314]
[1772707328373,10.82490791,92.38,92.318,0.83633863]
[1772707328584,10.82490791,92.38,92.32,0.83633863]
[1772707328804,0.19138829,92.379,92.32,0.83633863]
[1772707329000,0.19138829,92.379,92.319,0.28432314]
[1772707329001,10.82508822,92.378,92.322,0.83633863]
[1772707329585,43.38564133,92.41,92.323,1.12066177]
[1772707329586,0.19203096,92.396,92.323,1.12066177]
[1772707329779,10.82391652,92.388,92.325,0.83633863]
[1772707329982,10.82391652,92.388,92.327,0.83633863]
[1772707330180,11.01594748,92.388,92.328,0.9785002]
[1772707330376,11.01594748,92.388,92.329,0.9785002]
[1772707330577,0.19266904,92.379,92.331,0.83633863]
[1772707331082,0.19266904,92.369,92.333,0.83633863]
[1772707331295,10.82508822,92.378,92.333,0.83633863]
[1772707331871,0.19330318,92.396,92.333,0.83633863]
[1772707332184,10.82355422,92.392,92.333,0.83633863]
[1772707332368,17.54219391,92.389,92.333,0.83633863]
[1772707332874,0.19392094,92.388,92.333,0.83633863]
[1772707333077,0.19392094,92.386,92.335,0.83633863]
[1772707334190,10.824268,92.385,92.336,37.90504244]
[1772707334371,11.01879669,92.385,92.337,0.83633863]
[1772707334573,10.824268,92.385,92.337,0.83633863]
[1772707335072,6.71829949,92.389,92.338,0.83633863]
[1772707335276,6.71829949,92.389,92.34,0.83633863]
[1772707335485,6.71829949,92.389,92.341,0.83633863]
[1772707336294,11.0196472,92.388,92.343,0.83633863]
[1772707336506,0.19573068,92.387,92.343,0.83633863]
[1772707337994,0.1969151,92.379,92.343,0.83633863]
[1772707338696,0.19806668,92.387,92.345,0.79233044]
[1772707340783,0.19806668,92.387,92.3,10.92906904]
[1772707340784,4.05807753,92.35,92.321,0.79233044]
[1772707341084,0.19920257,92.349,92.321,0.79233044]
[1772707341794,11.02771716,92.349,92.321,0.79233044]
[1772707342296,0.19976348,92.348,92.31,10.8330625]
[1772707342499,0.19976348,92.348,92.311,0.79233044]
[1772707343905,10.8287221,92.347,92.313,0.79233044]
[1772707345086,10.82766685,92.356,92.313,0.79233044]
[1772707346203,0.201944,92.364,92.315,0.79233044]
[1772707348407,0.201944,92.364,92.297,1.08345883]
[1772707348408,11.03034388,92.363,92.317,0.81385812]
[1772707348606,0.20400239,92.362,92.317,0.81385812]
[1772707350023,0.20450496,92.37,92.317,0.81385812]
[1772707350311,10.82614297,92.369,92.318,37.9124331]
[1772707350517,10.82614297,92.369,92.319,0.81385812]
[1772707350690,0.20499978,92.368,92.319,0.81385812]
[1772707351700,37.89150039,92.369,92.304,0.81385812]
[1772707351701,0.20549279,92.342,92.304,0.81385812]
[1772707352201,4.25822926,92.34,92.304,0.81385812]
[1772707352394,4.05273647,92.32,92.29,0.81385812]
[1772707352707,0.205979,92.309,92.248,0.81385812]
[1772707352905,0.205979,92.309,92.251,0.81385812]
[1772707353106,0.205979,92.309,92.251,1.09818126]
[1772707353298,37.90791624,92.329,92.253,1.09818126]
[1772707353299,0.205979,92.319,92.253,1.09818126]
[1772707353499,0.205979,92.319,92.255,0.81385812]
[1772707353713,0.20645879,92.328,92.255,0.81385812]
[1772707353890,4.25919526,92.34,92.255,0.81385812]
[1772707354091,0.20645879,92.339,92.255,0.81385812]
[1772707356223,0.20645879,92.339,92.26,0.81385812]
[1772707356516,11.03471762,92.359,92.278,0.81385812]
[1772707357106,10.82731515,92.359,92.278,0.81385812]
[1772707357425,10.82637738,92.367,92.288,0.81385812]
[1772707357723,0.20831258,92.359,92.288,0.81385812]
[1772707358321,6.79905064,92.374,92.292,4.82477569]
[1772707358614,4.05273647,92.37,92.299,0.81385812]
[1772707358816,4.05273647,92.36,92.299,0.81385812]
[1772707359014,0.20875676,92.359,92.299,0.81385812]
[1772707359522,4.05273647,92.35,92.299,0.81385812]
[1772707359718,0.20920374,92.339,92.299,0.81385812]
[1772707360099,0.20920374,92.357,92.299,0.81385812]
[1772707360291,11.03687059,92.356,92.3,37.91982664]
[1772707360519,11.03687059,92.356,92.301,0.81385812]
[1772707360721,0.20964273,92.369,92.302,0.81385812]
[1772707360926,0.20964273,92.369,92.304,0.81385812]
[1772707361131,0.20964273,92.359,92.304,0.81385812]
[1772707361298,0.20964273,92.349,92.304,0.81385812]
[1772707362232,0.21007856,92.359,92.304,0.81385812]
[1772707362537,0.21051038,92.357,92.305,37.91777259]
[1772707362736,0.21051038,92.357,92.306,0.81385812]
[1772707362914,4.26324685,92.35,92.306,0.81385812]
[1772707363114,0.21051038,92.349,92.306,0.81385812]
[1772707367340,0.21051038,92.349,92.308,0.81385812]
[1772707368228,10.8281624,92.352,92.31,0.81385812]
[1772707368445,11.04074923,92.352,92.31,0.81385812]
[1772707368636,0.21298848,92.351,92.31,0.81385812]
[1772707369343,4.26612302,92.35,92.31,0.81385812]
[1772707369539,0.21377636,92.359,92.31,0.81385812]
[1772707369840,0.21377636,92.358,92.31,0.81385812]
[1772707370344,10.82731515,92.359,92.31,0.81385812]
[1772707371243,0.21416047,92.366,92.312,0.81423776]
[1772707372139,0.21454211,92.359,92.312,0.81423776]
[1772707372344,0.21454211,92.349,92.312,0.81423776]
[1772707373345,0.21492859,92.347,92.314,0.81423776]
[1772707375247,0.21567407,92.352,92.316,0.81423776]
[1772707375439,27.06855949,92.359,92.316,0.81423776]
[1772707375440,0.21567407,92.349,92.316,0.81423776]
[1772707377943,0.21675548,92.356,92.318,0.81423776]
[1772707379040,10.82731515,92.359,92.318,0.81423776]
[1772707380340,10.82567416,92.373,92.32,0.81423776]
[1772707380560,0.21744348,92.372,92.32,0.81423776]
[1772707380927,4.05273647,92.37,92.32,0.81423776]
[1772707381336,0.21744348,92.372,92.32,0.81423776]
[1772707381933,6.79905064,92.374,92.322,0.81423776]
[1772707382243,6.79905064,92.374,92.324,37.90996923]
[1772707382435,6.79905064,92.374,92.326,0.81423776]
[1772707382626,6.79905064,92.374,92.326,0.95639933]
[1772707384730,6.79905064,92.374,92.329,0.81423776]
[1772707386854,6.79905064,92.374,92.33,37.90750568]
[1772707387049,6.79905064,92.374,92.331,0.81423776]
[1772707389059,6.79905064,92.374,92.333,0.81423776]
[1772707390558,0.22068064,92.389,92.334,0.81423776]
[1772707390856,11.04402124,92.396,92.335,0.81423776]
[1772707391157,0.2209768,92.395,92.338,0.81423776]
[1772707392859,0.221568,92.394,92.338,0.81423776]
[1772707393473,11.04485141,92.394,92.341,0.81423776]
[1772707393664,0.22186187,92.393,92.341,0.81423776]
[1772707394245,10.82328341,92.394,92.341,0.81423776]
[1772707395347,0.22215039,92.4,92.344,0.81423776]
[1772707395547,10.82162692,92.408,92.344,0.81423776]
[1772707395749,10.82162692,92.408,92.348,0.81423776]
[1772707396055,0.222433,92.407,92.35,0.81423776]
[1772707396265,0.1,92.41,92.352,0.81423776]
[1772707396462,0.1,92.41,92.353,1.0985609]
[1772707396764,0.32271301,92.41,92.356,0.81423776]
[1772707396968,0.32271301,92.41,92.357,0.95639933]
[1772707397146,0.32271301,92.41,92.358,0.95639933]
[1772707397348,0.22271301,92.409,92.361,0.81423776]
[1772707397568,0.22298978,92.408,92.361,0.81423776]
[1772707397767,0.22298978,92.399,92.361,0.81423776]
[1772707398353,37.87509874,92.409,92.352,10.82813582]
[1772707398354,0.22298978,92.379,92.352,10.82813582]
[1772707398549,0.22326889,92.369,92.306,0.81423776]
[1772707398757,0.22326889,92.359,92.306,0.81423776]
[1772707399047,0.22326889,92.359,92.31,0.80193638]
[1772707399355,0.22354655,92.347,92.311,38.71724441]
[1772707400341,0.22354655,92.347,92.312,0.80193638]
[1772707400658,0.22410576,92.359,92.312,0.80193638]
[1772707401059,11.05024873,92.369,92.312,0.80193638]
[1772707401258,0.22410576,92.368,92.312,0.80193638]
[1772707401457,10.82637738,92.367,92.314,0.80193638]
[1772707402148,11.05074296,92.367,92.314,0.80193638]
[1772707404071,0.22489371,92.379,92.317,0.80193638]
[1772707404276,0.22489371,92.378,92.317,0.80193638]
[1772707404579,0.22515009,92.369,92.317,0.80193638]
[1772707404750,10.82497104,92.379,92.317,0.80193638]
[1772707404950,0.22515009,92.378,92.317,0.80193638]
[1772707406658,0.22563794,92.376,92.32,0.80193638]
[1772707407767,10.82471984,92.382,92.32,0.80193638]
[1772707407963,10.82471984,92.382,92.323,0.78970278]
[1772707408652,0.22635625,92.377,92.325,0.78970278]
[1772707409379,0.22635625,92.384,92.326,1.07402592]
[1772707409578,0.22659112,92.392,92.328,0.78970278]
[1772707409879,0.22659112,92.392,92.33,0.28432314]
[1772707410058,0.22659112,92.392,92.331,0.78970278]
[1772707410564,27.05456068,92.406,92.336,0.78970278]
[1772707410565,0.22682385,92.402,92.336,0.78970278]
[1772707410770,0.22682385,92.402,92.338,0.28432314]
[1772707411058,0.22682385,92.402,92.341,0.78970278]
[1772707411298,0.1,92.41,92.345,0.78970278]
[1772707411579,0.1,92.41,92.349,0.78970278]
[1772707411784,0.1,92.41,92.351,0.78970278]
[1772707412083,0.1,92.41,92.355,1.07402592]
[1772707412376,0.1,92.41,92.359,0.78970278]
[1772707412558,0.1,92.41,92.363,0.78970278]
[1772707413774,0.1,92.41,92.363,1.08268462]
[1772707413983,0.1,92.41,92.364,0.78970278]
[1772707414956,10.82157388,92.408,92.366,0.78970278]
[1772707415164,0.2277125,92.407,92.366,0.78970278]
[1772707415386,0.1,92.41,92.366,0.78970278]
[1772707416170,0.1,92.41,92.367,0.78970278]
[1772707416377,0.1,92.41,92.369,0.93186435]
[1772707416577,0.1,92.41,92.37,1.07402592]
[1772707416777,0.1,92.41,92.371,0.78970278]
[1772707416963,0.1,92.41,92.373,0.78970278]
[1772707417164,7.12634861,92.409,92.373,0.78970278]
[1772707417573,6.89820624,92.409,92.373,0.78970278]
[1772707417776,6.89820624,92.409,92.374,0.78970278]
[1772707418767,6.89820624,92.409,92.376,0.78970278]
[1772707418970,6.89820624,92.409,92.378,0.78970278]
[1772707419177,1e-08,92.41,92.38,0.78970278]
[1772707419401,1e-08,92.41,92.381,0.78970278]
[1772707419576,0.1,92.42,92.381,0.78970278]
[1772707419764,0.1,92.42,92.383,0.78970278]
[1772707420282,0.1,92.45,92.384,0.78970278]
[1772707420470,5.56332128,92.478,92.387,0.78970278]
[1772707420797,0.32904508,92.477,92.414,4.82477569]
[1772707420964,0.32904508,92.505,92.422,0.78970278]
[1772707421166,0.32904508,92.499,92.432,0.78970278]
[1772707421373,0.32904508,92.499,92.433,0.93186435]
[1772707421593,0.32932237,92.489,92.435,0.78970278]
[1772707421889,0.32932237,92.489,92.436,0.93186435]
[1772707422078,0.32932237,92.489,92.437,0.93186435]
[1772707422278,0.32932237,92.489,92.439,0.93186435]
[1772707422588,0.32932237,92.489,92.441,0.78970278]
[1772707423391,0.32959921,92.487,92.443,0.78970278]
[1772707424599,0.33013448,92.496,92.443,0.78970278]
[1772707424981,0.66687567,92.506,92.444,0.78970278]
[1772707424982,0.99701015,92.506,92.444,0.78970278]
[1772707425284,0.99701015,92.506,92.446,0.78970278]
[1772707425495,0.99701015,92.506,92.448,0.78970278]
[1772707425670,0.99701015,92.506,92.449,0.28432314]
[1772707425876,0.33039354,92.504,92.451,0.78970278]
[1772707426083,0.33039354,92.499,92.451,0.78970278]
[1772707426591,0.33039354,92.489,92.446,0.78970278]
[1772707427491,0.3309125,92.487,92.447,10.81700866]
[1772707427995,0.3309125,92.487,92.448,0.78970278]
[1772707428492,0.3309125,92.487,92.447,10.81700866]
[1772707428493,0.3309125,92.479,92.447,10.81700866]
[1772707429600,0.33166778,92.477,92.44,0.80882375]
[1772707430093,0.33166778,92.477,92.439,10.8179448]
[1772707430393,0.33166778,92.469,92.424,10.81970051]
[1772707430592,0.33166778,92.469,92.425,0.80882375]
[1772707431586,0.33166778,92.469,92.427,0.80882375]
[1772707433483,0.33166778,92.469,92.429,0.80882375]
[1772707434395,0.33264176,92.467,92.429,0.80882375]
[1772707434780,0.33264176,92.467,92.428,10.81923226]
[1772707435096,8.68051082,92.46,92.428,10.81923226]
[1772707435400,0.33287416,92.457,92.421,10.82005171]
[1772707435802,0.33310492,92.449,92.415,10.8206679]
[1772707436912,37.85502606,92.458,92.404,27.05506408]
[1772707436913,0.33333249,92.439,92.41,10.82122982]
[1772707437612,11.15162067,92.438,92.405,0.80882375]
[1772707439499,0.33400553,92.449,92.407,0.80882375]
[1772707439706,0.33400553,92.439,92.407,0.80882375]
[1772707440283,0.33400553,92.439,92.387,0.80882375]
[1772707440506,0.33400553,92.439,92.388,0.80882375]
[1772707441002,0.61855363,92.448,92.388,0.80882375]
[1772707441187,0.33423049,92.447,92.388,0.80882375]
[1772707441898,8.68051082,92.44,92.388,0.80882375]
[1772707442081,0.33444204,92.439,92.39,0.80882375]
[1772707443897,0.33486832,92.429,92.39,0.80882375]
[1772707444081,0.28432314,92.448,92.392,0.80882375]
[1772707444082,10.81923226,92.428,92.392,0.80882375]
[1772707444283,0.33486832,92.433,92.392,0.80882375]
[1772707444505,10.81855479,92.434,92.392,0.80882375]
[1772707445502,11.15323764,92.439,92.394,0.80882375]
[1772707445897,10.81733743,92.445,92.394,0.80882375]
[1772707446392,10.81729254,92.445,92.394,0.80882375]
[1772707447004,0.33549679,92.458,92.396,0.80882375]
[1772707447179,0.33549679,92.458,92.397,0.95098532]
[1772707447380,0.33549679,92.439,92.4,0.80882375]
[1772707447985,0.33549679,92.439,92.358,4.82477569]
[1772707447986,0.33570122,92.429,92.391,0.80882375]
[1772707448185,0.33570122,92.419,92.394,10.82315979]
[1772707448388,0.33570122,92.419,92.383,0.80882375]
[1772707448704,0.33589753,92.419,92.383,0.80882375]
[1772707449414,4.04580766,92.42,92.385,0.80882375]
[1772707449415,0.33589753,92.417,92.385,0.80882375]
[1772707449789,27.04817144,92.428,92.385,0.80882375]
[1772707449790,0.33609025,92.425,92.385,0.80882375]
[1772707450595,0.33609025,92.425,92.355,43.31078716]
[1772707450596,4.04580766,92.41,92.38,0.80882375]
[1772707450909,4.04580766,92.4,92.372,0.80882375]
[1772707451098,0.33628012,92.402,92.372,0.80882375]
[1772707451407,0.33628012,92.402,92.378,21.65227078]
[1772707451608,10.82239369,92.401,92.378,21.65227078]
[1772707453815,10.82239369,92.401,92.378,10.82726742]
[1772707454113,0.33686579,92.4,92.378,10.82726742]
[1772707454802,0.28432314,92.427,92.378,10.82726742]
[1772707454803,10.82117478,92.412,92.379,0.80882375]
[1772707455401,0.33706661,92.409,92.378,10.82726742]
[1772707455610,0.33726556,92.399,92.378,10.82726742]
[1772707455789,0.33726556,92.399,92.378,10.49008748]
[1772707455997,4.04580766,92.39,92.356,0.86866333]
[1772707456704,4.04580766,92.37,92.325,0.86866333]
[1772707458218,10.82614297,92.369,92.327,0.86866333]
[1772707458518,10.82508822,92.378,92.327,0.86866333]
[1772707460192,10.82457301,92.383,92.33,0.86866333]
[1772707462409,4.04580766,92.38,92.332,0.86866333]
[1772707462598,4.04580766,92.37,92.332,0.86866333]
[1772707462795,10.82379937,92.389,92.332,0.86866333]
[1772707463920,4.04580766,92.38,92.332,0.86866333]
[1772707464110,4.04580766,92.37,92.332,0.86866333]
[1772707464300,4.04580766,92.38,92.332,0.86866333]
[1772707464622,10.82497104,92.379,92.334,0.86866333]
[1772707466397,10.82497104,92.379,92.336,0.86866333]
[1772707468603,8.68136075,92.38,92.338,0.86866333]
[1772707469228,10.82309648,92.395,92.338,0.86866333]
[1772707469813,10.82309648,92.395,92.339,0.86866333]
[1772707470011,10.82309648,92.395,92.34,0.86866333]
[1772707470217,10.82309648,92.395,92.341,0.86866333]
[1772707470726,10.82309648,92.395,92.343,0.86866333]
[1772707471719,8.68136075,92.39,92.343,0.86866333]
[1772707472228,10.82309648,92.395,92.343,0.86866333]
[1772707473810,37.87263971,92.415,92.345,0.86866333]
[1772707474131,8.68136075,92.39,92.345,0.86866333]
[1772707476051,37.87263971,92.415,92.299,104.4]
[1772707476052,10.8228258,92.398,92.347,0.86866333]
[1772707478332,10.8228258,92.398,92.349,0.86866333]
[1772707478530,8.68136075,92.39,92.349,0.86866333]
[1772707478923,10.8228258,92.398,92.349,0.86866333]
[1772707481539,10.8228258,92.398,92.351,0.86866333]
[1772707484334,10.8228258,92.398,92.353,0.86866333]
[1772707485539,8.68136075,92.38,92.352,10.82813582]
[1772707485743,8.68136075,92.39,92.352,10.82813582]
[1772707486070,8.68136075,92.39,92.353,0.86866333]
[1772707486338,10.82379937,92.389,92.354,10.82790133]
[1772707486551,10.82379937,92.389,92.355,0.86866333]
[1772707489822,10.82379937,92.389,92.357,0.86866333]
[1772707490248,27.05656987,92.399,92.357,0.86866333]
[1772707490249,10.82262795,92.399,92.357,0.86866333]
[1772707492042,37.87427903,92.411,92.358,10.82743238]
[1772707492247,4.04903551,92.4,92.359,0.86866333]
[1772707492427,0.28432314,92.399,92.359,0.86866333]
[1772707493827,4.04903551,92.39,92.359,0.86866333]
[1772707494028,4.04903551,92.39,92.358,10.82743238]
[1772707494223,10.82379937,92.389,92.358,0.86866333]
[1772707494749,10.82145678,92.409,92.358,0.86866333]
[1772707495127,10.82028587,92.419,92.358,0.86866333]
[1772707496245,27.04866542,92.427,92.36,0.28432314]
[1772707496446,4.04903551,92.42,92.361,0.86866333]
[1772707497532,4.04903551,92.41,92.361,0.86866333]
[1772707498652,0.14216157,92.429,92.363,0.86866333]
[1772707498945,3.69383402,92.438,92.364,0.86866333]
[1772707499147,4.04903551,92.43,92.365,0.86866333]
[1772707499353,3.69383402,92.438,92.363,0.86866333]